fUST/lending_fUST_20250720
["ID","MTS","AMOUNT","RATE_DAILY","PERIOD"]
[373386661,1752982246960,-460.0,0.00019002,2]
[373386663,1752982246969,-460.0,0.00019002,2]
[373386665,1752982246979,-460.0,0.00019002,2]
[373386667,1752982246988,-460.0,0.00019002,2]
[373386669,1752982246997,-460.0,0.00019002,2]
[373386671,1752982247006,-561.05,0.00019002,2]
[373386673,1752982247016,-1332.01,0.00019002,2]
[373386675,1752982247025,-460.0,0.00019002,2]
[373386677,1752982247034,-460.0,0.00019002,2]
[373386679,1752982247043,-464.96,0.00019002,2]
[373386681,1752982247053,-460.0,0.00019002,2]
[373386683,1752982247062,-460.0,0.00019002,2]
[373386685,1752982247071,-1084.37,0.00019002,2]
[373386687,1752982247081,-460.0,0.00019002,2]
[373386689,1752982247090,-1311.41,0.00019002,2]
[373386691,1752982247099,-460.0,0.00019002,2]
[373386693,1752982247108,-155.69,0.00019002,2]
[373386695,1752982247117,-460.0,0.00019002,2]
[373386697,1752982247126,-460.0,0.00019002,2]
[373386699,1752982247135,-2187.05,0.00019002,2]
[373386701,1752982247144,-460.0,0.00019002,2]
[373386703,1752982247152,-460.0,0.00019002,2]
[373386704,1752982247162,-460.0,0.00019002,2]
[373386706,1752982247171,-460.0,0.00019002,2]
[373386708,1752982247181,-460.0,0.00019002,2]
[373386710,1752982247190,-460.0,0.00019002,2]
[373386712,1752982247200,-460.0,0.00019002,2]
[373386714,1752982247210,-460.0,0.00019002,2]
[373386716,1752982247219,-460.0,0.00019002,2]
[373386718,1752982247229,-460.0,0.00019002,2]
[373386721,1752982247238,-460.0,0.00019002,2]
[373386723,1752982247247,-488.42,0.00019002,2]
[373386724,1752982247256,-460.0,0.00019002,2]
[373386726,1752982247265,-470.8700511,0.00019003,2]
[373386728,1752982247275,-460.0,0.00019003,2]
[373386730,1752982247284,-460.0,0.00019003,2]
[373386732,1752982247293,-460.0,0.00019003,2]
[373386734,1752982247302,-460.0,0.00019003,2]
[373386736,1752982247311,-460.0,0.00019003,2]
[373386738,1752982247320,-460.0,0.00019003,2]
[373386740,1752982247330,-460.0,0.00019003,2]
[373386742,1752982247339,-973.04,0.00019004,2]
[373386744,1752982247348,-572.68780049,0.00019004,2]
[373386746,1752982247357,-1394.47,0.00019005,2]
[373386748,1752982247366,-460.0,0.00019005,2]
[373386750,1752982247375,-713.63,0.00019005,2]
[373386752,1752982247385,-992.04,0.00019005,2]
[373386754,1752982247394,-460.0,0.00019005,2]
[373386756,1752982247403,-578.97,0.00019005,2]
[373386758,1752982247412,-2631.35,0.00019005,2]
[373386770,1752982247508,-714.91313474,0.00019021,2]
[373386772,1752982247531,-1009.12110116,0.00019021,2]
[373386774,1752982247540,-500.0,0.00019106,2]
[373386776,1752982247550,-294.95038557,0.00019106,2]
[373386778,1752982247561,-153.59961057,0.00019106,2]
[373386780,1752982247570,-500.0,0.00019106,2]
[373386782,1752982247580,-199.77096402,0.00019106,2]
[373386784,1752982247589,-272.123943,0.00019112,2]
[373386786,1752982247599,-501.22358452,0.00019119,2]
[373386788,1752982247608,-5596.32382044,0.00019141,2]
[373386790,1752982247617,-460.0,0.00019176,2]
[373386792,1752982247627,-460.0,0.00019176,2]
[373386794,1752982247636,-460.0,0.00019176,2]
[373386796,1752982247645,-460.0,0.00019176,2]
[373386798,1752982247654,-460.0,0.00019176,2]
[373386800,1752982247665,-460.0,0.00019176,2]
[373386802,1752982247675,-460.0,0.00019176,2]
[373386804,1752982247684,-817.14,0.00019176,2]
[373386806,1752982247694,-460.0,0.00019176,2]
[373386808,1752982247703,-460.0,0.00019176,2]
[373386810,1752982247713,-460.0,0.00019176,2]
[373386812,1752982247722,-811.27,0.00019176,2]
[373386814,1752982247731,-460.0,0.00019176,2]
[373386816,1752982247741,-4542.81,0.00019176,2]
[373386818,1752982247751,-248.95616459,0.00019178,2]
[373386820,1752982247760,-151.27698425,0.00019178,2]
[373386822,1752982247769,-178.597976,0.00019178,2]
[373386824,1752982247778,-500.0,0.00019194,2]
[373386826,1752982247787,-1739.01972804,0.0001924,2]
[373386828,1752982247797,-460.0,0.00019275,2]
[373386830,1752982247807,-313.21547736,0.00019275,2]
[373386832,1752982247817,-460.0,0.00019275,2]
[373386834,1752982247825,-918.42,0.00019275,2]
[373386836,1752982247834,-477.91546652,0.00019276,2]
[373386838,1752982247844,-245.27434903,0.00019276,2]
[373386840,1752982247854,-460.0,0.00019276,2]
[373386842,1752982247863,-460.0,0.00019276,2]
[373386844,1752982247872,-460.0,0.00019276,2]
[373386846,1752982247881,-557.01906639,0.00019276,2]
[373386848,1752982247890,-460.0,0.00019276,2]
[373386850,1752982247900,-460.0,0.00019276,2]
[373386852,1752982247909,-460.0,0.00019276,2]
[373386854,1752982247919,-460.0,0.00019276,2]
[373386856,1752982247928,-460.0,0.00019276,2]
[373386858,1752982247937,-460.0,0.00019276,2]
[373386860,1752982247947,-561.05,0.00019276,2]
[373386862,1752982247956,-1332.01,0.00019276,2]
[373386864,1752982247966,-460.0,0.00019276,2]
[373386866,1752982247975,-460.0,0.00019276,2]
[373386868,1752982247984,-464.96,0.00019276,2]
[373386870,1752982247993,-460.0,0.00019276,2]
[373386872,1752982248002,-460.0,0.00019276,2]
[373386874,1752982248011,-1084.37,0.00019276,2]
[373386876,1752982248021,-460.0,0.00019276,2]
[373386877,1752982248030,-1311.41,0.00019276,2]
[373386879,1752982248039,-460.0,0.00019276,2]
[373386882,1752982248048,-460.0,0.00019276,2]
[373386883,1752982248058,-460.0,0.00019276,2]
[373386886,1752982248068,-460.0,0.00019276,2]
[373386887,1752982248077,-2187.05,0.00019276,2]
[373386889,1752982248090,-460.0,0.00019276,2]
[373386891,1752982248101,-460.0,0.00019276,2]
[373386893,1752982248112,-460.0,0.00019276,2]
[373386895,1752982248121,-460.0,0.00019276,2]
[373386897,1752982248131,-250.86874864,0.00019276,2]
[373386899,1752982248141,-460.0,0.00019276,2]
[373386901,1752982248150,-460.0,0.00019276,2]
[373386903,1752982248159,-460.0,0.00019276,2]
[373386905,1752982248170,-460.0,0.00019276,2]
[373386907,1752982248180,-460.0,0.00019276,2]
[373386909,1752982248189,-488.42,0.00019276,2]
[373386911,1752982248199,-460.0,0.00019276,2]
[373386913,1752982248208,-460.0,0.00019277,2]
[373386915,1752982248218,-477.03162213,0.00019277,2]
[373386917,1752982248227,-460.0,0.00019277,2]
[373386919,1752982248236,-460.0,0.00019277,2]
[373386921,1752982248247,-460.0,0.00019277,2]
[373386923,1752982248257,-460.0,0.00019277,2]
[373386925,1752982248266,-973.04,0.00019278,2]
[373386927,1752982248275,-1394.47,0.00019279,2]
[373386929,1752982248284,-460.0,0.00019279,2]
[373386931,1752982248294,-713.63,0.00019279,2]
[373386933,1752982248304,-992.04,0.00019279,2]
[373386935,1752982248313,-460.0,0.00019279,2]
[373386937,1752982248322,-578.97,0.00019279,2]
[373386940,1752982248332,-2631.35,0.00019279,2]
[373386941,1752982248341,-4872.15893033,0.00019329,2]
[373386943,1752982248351,-500.0,0.0001938,2]
[373386946,1752982248360,-500.0,0.0001938,2]
[373386947,1752982248369,-5596.32382044,0.00019383,2]
[373386949,1752982248379,-460.0,0.0001945,2]
[373386952,1752982248388,-460.0,0.0001945,2]
[373386954,1752982248398,-460.0,0.0001945,2]
[373386955,1752982248407,-460.0,0.0001945,2]
[373386957,1752982248417,-460.0,0.0001945,2]
[373386959,1752982248426,-460.0,0.0001945,2]
[373386961,1752982248435,-817.14,0.0001945,2]
[373386963,1752982248445,-460.0,0.0001945,2]
[373386965,1752982248454,-460.0,0.0001945,2]
[373386967,1752982248463,-460.0,0.0001945,2]
[373386969,1752982248473,-811.27,0.0001945,2]
[373386971,1752982248487,-460.0,0.0001945,2]
[373386973,1752982248496,-4542.81,0.0001945,2]
[373386975,1752982248505,-1500.0,0.00019468,2]
[373386977,1752982248514,-507.48046176,0.00019468,2]
[373386979,1752982248525,-460.0,0.00019549,2]
[373386981,1752982248534,-460.0,0.00019549,2]
[373386983,1752982248544,-918.42,0.00019549,2]
[373386985,1752982248553,-460.0,0.0001955,2]
[373386987,1752982248563,-460.0,0.0001955,2]
[373386989,1752982248572,-460.0,0.0001955,2]
[373386991,1752982248582,-460.0,0.0001955,2]
[373386993,1752982248591,-460.0,0.0001955,2]
[373386995,1752982248601,-460.0,0.0001955,2]
[373386997,1752982248610,-460.0,0.0001955,2]
[373386999,1752982248619,-460.0,0.0001955,2]
[373387001,1752982248629,-561.05,0.0001955,2]
[373387003,1752982248639,-1332.01,0.0001955,2]
[373387005,1752982248649,-460.0,0.0001955,2]
[373387007,1752982248658,-460.0,0.0001955,2]
[373387009,1752982248669,-464.96,0.0001955,2]
[373387011,1752982248679,-460.0,0.0001955,2]
[373387013,1752982248689,-460.0,0.0001955,2]
[373387015,1752982248701,-1084.37,0.0001955,2]
[373387017,1752982248710,-460.0,0.0001955,2]
[373387019,1752982248719,-1311.41,0.0001955,2]
[373387021,1752982248729,-460.0,0.0001955,2]
[373387023,1752982248738,-482.35685837,0.0001955,2]
[373387025,1752982248747,-460.0,0.0001955,2]
[373387027,1752982248757,-2187.05,0.0001955,2]
[373387029,1752982248766,-486.75613743,0.0001955,2]
[373387031,1752982248775,-460.0,0.0001955,2]
[373387033,1752982248784,-460.0,0.0001955,2]
[373387035,1752982248793,-460.0,0.0001955,2]
[373387037,1752982248803,-460.0,0.0001955,2]
[373387039,1752982248812,-460.0,0.0001955,2]
[373387041,1752982248822,-460.0,0.0001955,2]
[373387043,1752982248831,-488.42,0.0001955,2]
[373387045,1752982248839,-460.0,0.0001955,2]
[373387047,1752982248849,-460.0,0.00019551,2]
[373387049,1752982248858,-460.0,0.00019551,2]
[373387051,1752982248867,-158.45459108,0.00019551,2]
[373387053,1752982248877,-538.04655802,0.00019551,2]
[373387055,1752982248886,-386.14255745,0.00019551,2]
[373387057,1752982248895,-973.04,0.00019552,2]
[373387059,1752982248905,-1394.47,0.00019553,2]
[373387061,1752982248916,-460.0,0.00019553,2]
[373387063,1752982248926,-713.63,0.00019553,2]
[373387065,1752982248935,-992.04,0.00019553,2]
[373387067,1752982248945,-460.0,0.00019553,2]
[373387069,1752982248955,-578.97,0.00019553,2]
[373387071,1752982248964,-2631.35,0.00019553,2]
[373387073,1752982248974,-1739.01972804,0.00019568,2]
[373387075,1752982248983,-5596.32382044,0.00019624,2]
[373387077,1752982248992,-500.0,0.00019654,2]
[373387079,1752982249001,-500.0,0.00019654,2]
[373387081,1752982249011,-160.0,0.00019659,2]
[373387083,1752982249020,-160.0,0.00019659,2]
[373387084,1752982249029,-160.0,0.00019659,2]
[373387088,1752982249048,-160.0,0.00019659,2]
[373387090,1752982249059,-525.91036056,0.00019659,2]
[373387092,1752982249069,-160.0,0.00019659,2]
[373387094,1752982249079,-214.5637056,0.00019659,2]
[373387096,1752982249088,-839.59621281,0.00019659,2]
[373387098,1752982249097,-215.71456056,0.00019659,2]
[373387100,1752982249108,-12615.16111038,0.00019669,2]
[373387102,1752982249118,-160.0,0.00019669,2]
[373387104,1752982249127,-476.42619115,0.00019669,2]
[373387106,1752982249137,-230.98123516,0.00019669,2]
[373387108,1752982249147,-160.0,0.00019669,2]
[373387110,1752982249156,-754.28,0.00019714,3]
[373387112,1752982249167,-377.14,0.00019714,3]
[373387114,1752982249177,-460.0,0.00019724,2]
[373387116,1752982249187,-460.0,0.00019724,2]
[373387118,1752982249196,-460.0,0.00019724,2]
[373387120,1752982249206,-460.0,0.00019724,2]
[373387122,1752982249215,-460.0,0.00019724,2]
[373387124,1752982249224,-817.14,0.00019724,2]
[373387126,1752982249234,-470.66205408,0.00019724,2]
[373387128,1752982249244,-460.0,0.00019724,2]
[373387130,1752982249253,-460.0,0.00019724,2]
[373387132,1752982249262,-811.27,0.00019724,2]
[373387134,1752982249272,-460.0,0.00019724,2]
[373387135,1752982249282,-4542.81,0.00019724,2]
[373387136,1752982249292,-170.29433179,0.00019724,2]
[373387137,1752982249301,-500.0,0.00019822,2]
[373387138,1752982249312,-500.0,0.00019822,2]
[373387139,1752982249322,-177.57295202,0.00019822,2]
[373387140,1752982249331,-460.0,0.00019823,2]
[373387141,1752982249340,-460.0,0.00019823,2]
[373387143,1752982249350,-918.42,0.00019823,2]
[373387145,1752982249360,-559.33238142,0.00019824,2]
[373387147,1752982249370,-460.0,0.00019824,2]
[373387149,1752982249379,-460.0,0.00019824,2]
[373387151,1752982249389,-460.0,0.00019824,2]
[373387153,1752982249399,-460.0,0.00019824,2]
[373387155,1752982249408,-460.0,0.00019824,2]
[373387157,1752982249419,-460.0,0.00019824,2]
[373387159,1752982249428,-460.0,0.00019824,2]
[373387161,1752982249438,-561.05,0.00019824,2]
[373387163,1752982249447,-1332.01,0.00019824,2]
[373387165,1752982249456,-460.0,0.00019824,2]
[373387167,1752982249466,-460.0,0.00019824,2]
[373387169,1752982249477,-464.96,0.00019824,2]
[373387171,1752982249488,-460.0,0.00019824,2]
[373387173,1752982249498,-460.0,0.00019824,2]
[373387176,1752982249508,-1084.37,0.00019824,2]
[373387178,1752982249518,-460.0,0.00019824,2]
[373387180,1752982249528,-1311.41,0.00019824,2]
[373387182,1752982249537,-502.25704218,0.00019824,2]
[373387184,1752982249546,-460.0,0.00019824,2]
[373387186,1752982249556,-2187.05,0.00019824,2]
[373387188,1752982249565,-460.0,0.00019824,2]
[373387189,1752982249575,-460.0,0.00019824,2]
[373387190,1752982249583,-460.0,0.00019824,2]
[373387191,1752982249592,-460.0,0.00019824,2]
[373387192,1752982249602,-460.0,0.00019824,2]
[373387193,1752982249611,-460.0,0.00019824,2]
[373387194,1752982249620,-488.42,0.00019824,2]
[373387195,1752982249629,-460.0,0.00019824,2]
[373387196,1752982249638,-460.0,0.00019825,2]
[373387197,1752982249648,-460.0,0.00019825,2]
[373387198,1752982249657,-973.04,0.00019826,2]
[373387199,1752982249671,-1394.47,0.00019827,2]
[373387200,1752982249680,-460.0,0.00019827,2]
[373387201,1752982249689,-713.63,0.00019827,2]
[373387202,1752982249699,-992.04,0.00019827,2]
[373387203,1752982249708,-578.97,0.00019827,2]
[373387204,1752982249717,-2631.35,0.00019827,2]
[373387205,1752982249726,-420.0,0.00019831,2]
[373387206,1752982249735,-5596.32382044,0.00019866,2]
[373387207,1752982249745,-500.0,0.00019928,2]
[373387208,1752982249754,-500.0,0.00019928,2]
[373387209,1752982249764,-160.0,0.00019945,2]
[373387210,1752982249773,-500.0,0.00019973,2]
[373387211,1752982249783,-500.0,0.00019973,2]
[373387212,1752982249792,-500.0,0.00019973,2]
[373387213,1752982249801,-500.0,0.00019973,2]
[373387214,1752982249811,-500.0,0.00019973,2]
[373387215,1752982249820,-199175.63663977,0.0001998,2]
[373387216,1752982249829,-167.26833532,0.00019998,2]
[373387217,1752982249838,-460.0,0.00019998,2]
[373387218,1752982249848,-460.0,0.00019998,2]
[373387219,1752982249858,-460.0,0.00019998,2]
[373387220,1752982249868,-460.0,0.00019998,2]
[373387221,1752982249878,-817.14,0.00019998,2]
[373387222,1752982249887,-460.0,0.00019998,2]
[373387223,1752982249896,-460.0,0.00019998,2]
[373387224,1752982249906,-811.27,0.00019998,2]
[373387225,1752982249916,-460.0,0.00019998,2]
[373387226,1752982249926,-4542.81,0.00019998,2]
[373387227,1752982249935,-8184.855598,0.0002,2]
[373387228,1752982249944,-3194.4852885,0.0002,2]
[373387229,1752982249953,-362.71658097,0.0002,2]
[373387230,1752982249963,-71517.75574495,0.0002,2]
[373387231,1752982249972,-5930.35433822,0.0002,2]
[373387232,1752982249981,-71991.9922906,0.0002,2]
[373387233,1752982249990,-1524.9251022,0.00020016,2]
[373387235,1752982249999,-460.0,0.00020097,2]
[373387252,1752982250134,-230.08,0.00020097,2]
[373387254,1752982250156,-918.42,0.00020097,2]
[373387257,1752982250167,-164.60040062,0.00020098,2]
[373387259,1752982250176,-460.0,0.00020098,2]
[373387261,1752982250186,-460.0,0.00020098,2]
[373387263,1752982250195,-460.0,0.00020098,2]
[373387265,1752982250204,-460.0,0.00020098,2]
[373387267,1752982250214,-460.0,0.00020098,2]
[373387269,1752982250224,-460.0,0.00020098,2]
[373387271,1752982250233,-561.05,0.00020098,2]
[373387273,1752982250242,-1332.01,0.00020098,2]
[373387275,1752982250251,-460.0,0.00020098,2]
[373387277,1752982250261,-460.0,0.00020098,2]
[373387278,1752982250270,-464.96,0.00020098,2]
[373387279,1752982250280,-460.0,0.00020098,2]
[373387280,1752982250290,-460.0,0.00020098,2]
[373387281,1752982250300,-1084.37,0.00020098,2]
[373387282,1752982250309,-460.0,0.00020098,2]
[373387283,1752982250319,-1311.41,0.00020098,2]
[373387284,1752982250328,-460.0,0.00020098,2]
[373387285,1752982250337,-2187.05,0.00020098,2]
[373387286,1752982250347,-460.0,0.00020098,2]
[373387287,1752982250357,-460.0,0.00020098,2]
[373387288,1752982250366,-460.0,0.00020098,2]
[373387289,1752982250375,-460.0,0.00020098,2]
[373387290,1752982250384,-460.0,0.00020098,2]
[373387291,1752982250393,-460.0,0.00020098,2]
[373387292,1752982250403,-488.42,0.00020098,2]
[373387293,1752982250413,-460.0,0.00020098,2]
[373387294,1752982250424,-460.0,0.00020099,2]
[373387295,1752982250433,-460.0,0.00020099,2]
[373387296,1752982250442,-973.04,0.000201,2]
[373387297,1752982250452,-1394.47,0.00020101,2]
[373387298,1752982250461,-460.0,0.00020101,2]
[373387299,1752982250471,-713.63,0.00020101,2]
[373387300,1752982250483,-992.04,0.00020101,2]
[373387301,1752982250492,-578.97,0.00020101,2]
[373387302,1752982250501,-2631.35,0.00020101,2]
[373387303,1752982250511,-5596.32382044,0.00020107,2]
[373387304,1752982250522,-272.123943,0.00020145,2]
[373387305,1752982250531,-200.373707,0.00020187,2]
[373387306,1752982250541,-500.0,0.00020202,2]
[373387307,1752982250550,-500.0,0.00020202,2]
[373387308,1752982250562,-500.0,0.00020205,2]
[373387309,1752982250572,-501.11953205,0.00020223,2]
[373387310,1752982250581,-460.0,0.00020272,2]
[373387311,1752982250590,-460.0,0.00020272,2]
[373387312,1752982250600,-460.0,0.00020272,2]
[373387313,1752982250610,-460.0,0.00020272,2]
[373387314,1752982250620,-817.14,0.00020272,2]
[373387315,1752982250630,-460.0,0.00020272,2]
[373387316,1752982250639,-460.0,0.00020272,2]
[373387317,1752982250649,-811.27,0.00020272,2]
[373387318,1752982250659,-460.0,0.00020272,2]
[373387319,1752982250670,-4542.81,0.00020272,2]
[373387320,1752982250679,-500.0,0.0002032,2]
[373387321,1752982250689,-5596.32382044,0.00020348,3]
[373387322,1752982250698,-476.42619115,0.0002035,3]
[373387323,1752982250707,-460.0,0.00020371,2]
[373387324,1752982250717,-918.42,0.00020371,2]
[373387325,1752982250726,-460.0,0.00020372,2]
[373387326,1752982250735,-460.0,0.00020372,2]
[373387327,1752982250745,-460.0,0.00020372,2]
[373387328,1752982250755,-460.0,0.00020372,2]
[373387329,1752982250764,-460.0,0.00020372,2]
[373387330,1752982250774,-460.0,0.00020372,2]
[373387331,1752982250783,-561.05,0.00020372,2]
[373387332,1752982250793,-1332.01,0.00020372,2]
[373387333,1752982250802,-460.0,0.00020372,2]
[373387334,1752982250812,-460.0,0.00020372,2]
[373387335,1752982250821,-464.96,0.00020372,2]
[373387336,1752982250831,-460.0,0.00020372,2]
[373387337,1752982250841,-460.0,0.00020372,2]
[373387338,1752982250850,-1084.37,0.00020372,2]
[373387339,1752982250860,-460.0,0.00020372,2]
[373387340,1752982250869,-1311.41,0.00020372,2]
[373387341,1752982250879,-460.0,0.00020372,2]
[373387342,1752982250888,-2187.05,0.00020372,2]
[373387343,1752982250898,-460.0,0.00020372,2]
[373387344,1752982250907,-460.0,0.00020372,2]
[373387345,1752982250917,-460.0,0.00020372,2]
[373387346,1752982250927,-460.0,0.00020372,2]
[373387347,1752982250936,-460.0,0.00020372,2]
[373387348,1752982250946,-460.0,0.00020372,2]
[373387349,1752982250955,-488.42,0.00020372,2]
[373387350,1752982250965,-460.0,0.00020372,2]
[373387351,1752982250974,-460.0,0.00020373,2]
[373387352,1752982250983,-460.0,0.00020373,2]
[373387353,1752982250993,-973.04,0.00020374,2]
[373387354,1752982251012,-1394.47,0.00020375,2]
[373387355,1752982251023,-460.0,0.00020375,2]
[373387356,1752982251033,-713.63,0.00020375,2]
[373387357,1752982251043,-992.04,0.00020375,2]
[373387358,1752982251052,-578.97,0.00020375,2]
[373387359,1752982251062,-2631.35,0.00020375,2]
[373387360,1752982251072,-500.0,0.00020476,2]
[373387361,1752982251082,-500.0,0.00020476,2]
[373387362,1752982251092,-260.0,0.00020493,2]
[373387363,1752982251102,-512.46627473,0.00020521,2]
[373387364,1752982251112,-174.44900746,0.00020521,2]
[373387365,1752982251122,-1000.0,0.00020521,2]
[373387366,1752982251132,-1000.0,0.00020521,2]
[373387367,1752982251142,-214.5637056,0.0002053,3]
[373387368,1752982251151,-12615.16111038,0.0002053,3]
[373387370,1752982251161,-460.0,0.00020546,2]
[373387372,1752982251171,-460.0,0.00020546,2]
[373387373,1752982251181,-460.0,0.00020546,2]
[373387375,1752982251191,-460.0,0.00020546,2]
[373387376,1752982251200,-817.14,0.00020546,2]
[373387377,1752982251210,-460.0,0.00020546,2]
[373387378,1752982251219,-460.0,0.00020546,2]
[373387379,1752982251229,-811.27,0.00020546,2]
[373387380,1752982251238,-247.2,0.00020546,2]
[373387381,1752982251248,-4542.81,0.00020546,2]
[373387382,1752982251258,-500.0,0.00020547,2]
[373387383,1752982251267,-500.0,0.00020547,2]
[373387384,1752982251277,-500.0,0.00020547,2]
[373387385,1752982251287,-500.0,0.00020547,2]
[373387386,1752982251297,-500.0,0.00020547,2]
[373387387,1752982251306,-500.0,0.00020547,2]
[373387388,1752982251315,-500.0,0.00020547,2]
[373387389,1752982251325,-500.0,0.00020547,2]
[373387390,1752982251335,-500.0,0.00020547,2]
[373387391,1752982251344,-5596.32382044,0.0002059,3]
[373387392,1752982251354,-152.028428,0.0002059,2]
[373387393,1752982251364,-500.0,0.00020645,2]
[373387394,1752982251374,-460.0,0.00020645,2]
[373387395,1752982251384,-918.42,0.00020645,2]
[373387396,1752982251394,-460.0,0.00020646,2]
[373387397,1752982251404,-460.0,0.00020646,2]
[373387398,1752982251414,-460.0,0.00020646,2]
[373387399,1752982251425,-460.0,0.00020646,2]
[373387400,1752982251435,-460.0,0.00020646,2]
[373387401,1752982251444,-460.0,0.00020646,2]
[373387402,1752982251454,-561.05,0.00020646,2]
[373387403,1752982251464,-1332.01,0.00020646,2]
[373387404,1752982251474,-460.0,0.00020646,2]
[373387405,1752982251487,-460.0,0.00020646,2]
[373387406,1752982251497,-464.96,0.00020646,2]
[373387407,1752982251507,-460.0,0.00020646,2]
[373387408,1752982251517,-460.0,0.00020646,2]
[373387409,1752982251527,-1084.37,0.00020646,2]
[373387410,1752982251537,-460.0,0.00020646,2]
[373387411,1752982251546,-1311.41,0.00020646,2]
[373387412,1752982251556,-460.0,0.00020646,2]
[373387413,1752982251567,-2187.05,0.00020646,2]
[373387414,1752982251576,-460.0,0.00020646,2]
[373387415,1752982251586,-460.0,0.00020646,2]
[373387416,1752982251595,-460.0,0.00020646,2]
[373387417,1752982251605,-460.0,0.00020646,2]
[373387418,1752982251614,-460.0,0.00020646,2]
[373387419,1752982251623,-460.0,0.00020646,2]
[373387420,1752982251633,-488.42,0.00020646,2]
[373387421,1752982251643,-460.0,0.00020646,2]
[373387422,1752982251652,-460.0,0.00020647,2]
[373387423,1752982251662,-460.0,0.00020647,2]
[373387424,1752982251671,-973.04,0.00020648,2]
[373387425,1752982251681,-1394.47,0.00020649,2]
[373387426,1752982251691,-460.0,0.00020649,2]
[373387427,1752982251700,-713.63,0.00020649,2]
[373387428,1752982251710,-992.04,0.00020649,2]
[373387429,1752982251719,-578.97,0.00020649,2]
[373387430,1752982251729,-2631.35,0.00020649,2]
[373387431,1752982251739,-500.0,0.0002075,2]
[373387432,1752982251749,-500.0,0.0002075,2]
[373387433,1752982251758,-2181.31825753,0.0002078,2]
[373387434,1752982251768,-1160.425,0.00020808,2]
[373387435,1752982251777,-178.70934786,0.00020808,2]
[373387436,1752982251787,-460.0,0.0002082,2]
[373387437,1752982251796,-460.0,0.0002082,2]
[373387438,1752982251806,-460.0,0.0002082,2]
[373387439,1752982251816,-460.0,0.0002082,2]
[373387440,1752982251825,-817.14,0.0002082,2]
[373387441,1752982251835,-460.0,0.0002082,2]
[373387442,1752982251844,-460.0,0.0002082,2]
[373387443,1752982251854,-811.27,0.0002082,2]
[373387444,1752982251863,-4542.81,0.0002082,2]
[373387445,1752982251872,-5596.32382044,0.00020831,4]
[373387446,1752982251882,-1000.02595806,0.00020868,2]
[373387447,1752982251892,-500.0,0.00020919,2]
[373387448,1752982251901,-239.93632253,0.00020919,2]
[373387449,1752982251911,-918.42,0.00020919,2]
[373387450,1752982251922,-460.0,0.0002092,2]
[373387451,1752982251931,-460.0,0.0002092,2]
[373387452,1752982251942,-460.0,0.0002092,2]
[373387453,1752982251951,-460.0,0.0002092,2]
[373387454,1752982251960,-460.0,0.0002092,2]
[373387455,1752982251970,-460.0,0.0002092,2]
[373387456,1752982251980,-561.05,0.0002092,2]
[373387457,1752982251989,-1332.01,0.0002092,2]
[373387458,1752982251999,-460.0,0.0002092,2]